bitfinex-derivatives/quotes_BTCF0:USTF0_20210705
["timestamp","ask_amount","ask_price","bid_price","bid_amount"]
[1625464944095,0.78272632,34285.0,34284.0,3.31268444]
[1625464944296,0.84172632,34285.0,34284.0,3.31268444]
[1625464944396,0.72372632,34285.0,34284.0,3.31268444]
[1625464945246,0.78272632,34285.0,34284.0,3.31268444]
[1625464945348,0.72372632,34285.0,34284.0,3.31268444]
[1625464945899,0.78272632,34285.0,34284.0,3.31268444]
[1625464946100,0.79661614,34285.0,34284.0,3.31268444]
[1625464946200,0.73761614,34285.0,34284.0,3.31268444]
[1625464946300,0.79661614,34285.0,34284.0,3.31268444]
[1625464946400,0.73761614,34285.0,34284.0,3.31268444]
[1625464946603,0.72372632,34285.0,34284.0,3.31268444]
[1625464946701,0.78272632,34285.0,34284.0,3.31268444]
[1625464947007,0.84172632,34285.0,34284.0,3.31268444]
[1625464947106,0.78272632,34285.0,34284.0,3.31268444]
[1625464947204,0.79661619,34285.0,34284.0,3.31268444]
[1625464947304,0.85561619,34285.0,34284.0,3.31268444]
[1625464947555,0.79661619,34285.0,34284.0,3.31268444]
[1625464947754,0.73761619,34285.0,34284.0,3.31268444]
[1625464948958,0.79661619,34285.0,34284.0,3.31268444]
[1625464949060,0.73761619,34285.0,34284.0,3.31268444]
[1625464949161,0.79661619,34285.0,34284.0,3.31268444]
[1625464949260,0.73761619,34285.0,34284.0,3.31268444]
[1625464949560,0.79661619,34285.0,34284.0,3.31268444]
[1625464950009,0.73761619,34285.0,34284.0,3.31268444]
[1625464950209,0.79661619,34285.0,34284.0,3.31268444]
[1625464950310,0.73761619,34285.0,34284.0,3.31268444]
[1625464951213,0.79661619,34285.0,34284.0,3.31268444]
[1625464951363,0.73761619,34285.0,34284.0,3.31268444]
[1625464951464,0.79661619,34285.0,34284.0,3.31268444]
[1625464951667,0.85561619,34285.0,34284.0,3.31268444]
[1625464951764,0.79661619,34285.0,34284.0,3.31268444]
[1625464951966,0.73761619,34285.0,34284.0,3.31268444]
[1625464952415,0.79661619,34285.0,34284.0,3.31268444]
[1625464952665,0.85561619,34285.0,34284.0,3.31268444]
[1625464953120,0.79661619,34285.0,34284.0,3.31268444]
[1625464953516,0.85561619,34285.0,34284.0,3.31268444]
[1625464953619,0.79661619,34285.0,34284.0,3.31268444]
[1625464953818,0.85561619,34285.0,34284.0,3.31268444]
[1625464953918,0.79661619,34285.0,34284.0,3.31268444]
[1625464954169,0.85561619,34285.0,34284.0,3.31268444]
[1625464954268,0.79661619,34285.0,34284.0,3.31268444]
[1625464954519,0.85561619,34285.0,34284.0,3.31268444]
[1625464954619,0.79661619,34285.0,34284.0,3.31268444]
[1625464954718,0.85561619,34285.0,34284.0,3.31268444]
[1625464955822,0.79661619,34285.0,34284.0,3.31268444]
[1625464956023,0.85561619,34285.0,34284.0,3.31268444]
[1625464956223,0.79661619,34285.0,34284.0,3.31268444]
[1625464956471,0.85561619,34285.0,34284.0,3.31268444]
[1625464956572,0.79661619,34285.0,34284.0,3.31268444]
[1625464957425,0.85561619,34285.0,34284.0,3.31268444]
[1625464958978,0.85561619,34285.0,34284.0,2.15380801]
[1625464959228,0.85561619,34285.0,34284.0,1.98280801]
[1625464959426,0.85561619,34285.0,34284.0,1.96380801]
[1625464959677,0.85561619,34285.0,34284.0,1.46380801]
[1625464959779,3.93894073,34285.0,34283.0,0.1664056]
[1625464959878,3.93894073,34285.0,34281.0,0.6649392]
[1625464959977,4.03894073,34285.0,34281.0,0.6649392]
[1625464960177,0.04845908,34284.0,34281.0,0.6649392]
[1625464960278,0.16645908,34284.0,34281.0,0.5701392]
[1625464960378,5.16552873,34282.0,34274.0,0.99960607]
[1625464960478,0.5,34281.0,34274.0,0.99960607]
[1625464960579,0.86487,34281.0,34274.0,0.99960607]
[1625464960678,0.93777751,34281.0,34275.0,0.00457902]
[1625464960979,4.6664,34278.0,34275.0,0.00457902]
[1625464961080,1.37747183,34277.0,34275.0,0.00457902]
[1625464961179,1.49547183,34277.0,34275.0,0.00457902]
[1625464961379,0.73563449,34276.0,34274.0,0.00457935]
[1625464961479,0.79463449,34276.0,34274.0,0.00457935]
[1625464961579,0.85363449,34276.0,34274.0,0.00457935]
[1625464961682,0.01390832,34275.0,34273.0,0.99971948]
[1625464961781,0.13190832,34275.0,34273.0,0.99971948]
[1625464961882,0.13190832,34275.0,34271.0,1.00065054]
[1625464961979,0.118,34275.0,34271.0,1.00065054]
[1625464962382,1.03240099,34273.0,34271.0,1.00065054]
[1625464962484,1.25263099,34273.0,34271.0,1.00065054]
[1625464962985,1.03253718,34272.0,34270.0,1.00058621]
[1625464963435,0.48115088,34271.0,34270.0,1.00058621]
[1625464964090,0.54015088,34271.0,34270.0,1.00058621]
[1625464965639,0.54015088,34271.0,34269.0,0.99925201]
[1625464966591,0.54015088,34271.0,34268.0,0.99941207]
[1625464967044,0.54015088,34271.0,34269.0,0.99848717]
[1625464967595,0.24057544,34270.0,34269.0,0.99848717]
[1625464967845,0.29957544,34270.0,34268.0,0.99792662]
[1625464970300,0.24057544,34270.0,34268.0,0.99792662]
[1625464971954,0.29957544,34270.0,34268.0,0.99792662]
[1625464972058,0.24057544,34270.0,34268.0,0.99792662]
[1625464972763,0.29957544,34270.0,34268.0,0.99792662]
[1625464972891,0.55801544,34270.0,34268.0,0.99792662]
[1625464972997,1.11701544,34270.0,34268.0,0.96632662]
[1625464973084,1.11701544,34270.0,34265.0,0.99928265]
[1625464973182,0.61701544,34270.0,34265.0,0.99928265]
[1625464973507,0.49901544,34270.0,34265.0,0.99928265]
[1625464973609,1.20263214,34268.0,34259.0,1.16800707]
[1625464973708,1.20263214,34268.0,34259.0,1.28600707]
[1625464973808,0.48115088,34260.0,34259.0,1.28600707]
[1625464974012,0.48115088,34260.0,34259.0,1.45072373]
[1625464974324,0.48115088,34260.0,34259.0,2.61673355]
[1625464977316,0.48315088,34260.0,34259.0,2.61673355]
[1625464980172,0.48315088,34260.0,34259.0,0.059]
[1625464980274,0.48315088,34260.0,34256.0,1.49807144]
[1625464980484,0.48315088,34260.0,34256.0,1.55707144]
[1625464980679,0.54215088,34260.0,34256.0,1.55707144]
[1625464980774,0.54215088,34260.0,34257.0,1.1669286]
[1625464980872,0.54215088,34260.0,34257.0,1.2259286]
[1625464981273,0.54215088,34260.0,34257.0,0.059]
[1625464981879,0.24057544,34258.0,34257.0,0.059]
[1625464982935,0.29957544,34258.0,34255.0,1.16743996]
[1625464983128,0.35857544,34258.0,34255.0,1.03893996]
[1625464983227,0.29957544,34258.0,34255.0,1.03893996]
[1625464983427,0.24057544,34258.0,34255.0,1.03893996]
[1625464983528,0.24057544,34258.0,34248.0,1.33699507]
[1625464983628,0.24057544,34258.0,34248.0,1.39599507]
[1625464983929,0.48115088,34249.0,34248.0,1.33699507]
[1625464984029,0.48115088,34249.0,34248.0,1.39599507]
[1625464984380,0.48115088,34249.0,34248.0,1.4005766]
[1625464984480,0.48115088,34249.0,34248.0,0.06358153]
[1625464985130,0.48115088,34249.0,34248.0,0.00458153]
[1625464985433,0.48115088,34249.0,34247.0,1.33603644]
[1625464985634,0.48115088,34249.0,34247.0,1.39503644]
[1625464985833,0.48115088,34249.0,34247.0,0.059]
[1625464986283,0.48315088,34249.0,34247.0,0.059]
[1625464986984,0.48315088,34249.0,34246.0,0.24057544]
[1625464987438,0.48315088,34249.0,34246.0,0.29957544]
[1625464987888,0.006,34253.0,34246.0,0.29957544]
[1625464987986,0.006,34253.0,34246.0,0.35857544]
[1625464988287,0.006,34253.0,34247.0,0.00458153]
[1625464988387,0.006,34253.0,34247.0,0.06358153]
[1625464988487,0.006,34253.0,34247.0,0.12258153]
[1625464988840,0.006,34253.0,34248.0,0.00458125]
[1625464988938,0.006,34253.0,34248.0,1.78240785]
[1625464989342,0.002,34250.0,34248.0,0.45036125]
[1625464989440,0.002,34250.0,34249.0,0.00458103]
[1625464989539,0.002,34250.0,34249.0,0.12258103]
[1625464989793,0.002,34250.0,34249.0,1.45063122]
[1625464989892,0.004,34252.0,34249.0,1.45063122]
[1625464989993,0.004,34252.0,34249.0,1.9317821]
[1625464990241,0.004,34252.0,34250.0,0.00457631]
[1625464990342,0.004,34252.0,34250.0,0.12257631]
[1625464990641,0.004,34252.0,34250.0,1.45012187]
[1625464990742,0.004,34252.0,34251.0,0.00457638]
[1625464990843,0.004,34252.0,34251.0,0.12257638]
[1625464990942,0.004,34252.0,34251.0,1.44991576]
[1625464991943,0.004,34252.0,34251.0,1.6904912]
[1625464992293,0.004,34252.0,34251.0,1.6884912]
[1625464995202,0.004,34252.0,34251.0,1.6294912]
[1625464995302,0.002,34253.0,34251.0,1.6294912]
[1625464995406,0.002,34253.0,34251.0,1.6884912]
[1625464995504,0.002,34253.0,34251.0,0.63089182]
[1625464995702,0.002,34253.0,34252.0,0.0045746]
[1625464995803,0.002,34253.0,34252.0,0.1225746]
[1625464996306,1.3694317,34270.0,34252.0,0.1225746]
[1625464996407,1.497,42643.0,34252.0,0.1225746]
[1625464996408,1.60996389,34271.0,34252.0,0.1225746]
[1625464996512,0.9933,34264.0,34252.0,0.1225746]
[1625464996806,0.9933,34264.0,34253.0,0.00457395]
[1625464996907,0.9933,34264.0,34260.0,0.33118634]
[1625464997007,0.9933,34264.0,34260.0,0.67627634]
[1625464997108,0.9933,34264.0,34260.0,0.73527634]
[1625464997962,0.9933,34264.0,34263.0,0.72172632]
[1625464998209,0.9933,34264.0,34263.0,0.78072632]
[1625464999115,1.0933,34264.0,34263.0,0.78072632]
[1625464999466,1.0933,34264.0,34263.0,0.83972632]
[1625465000119,1.0933,34264.0,34263.0,0.78072632]
[1625465000267,1.0933,34264.0,34263.0,0.83972632]
[1625465000368,1.0933,34264.0,34263.0,0.78072632]
[1625465000568,1.0933,34264.0,34263.0,0.83972632]
[1625465001369,0.24057544,34271.0,34263.0,0.83972632]
[1625465001570,1.61024753,34276.0,34263.0,0.83972632]
[1625465001671,1.61024753,34276.0,34264.0,0.00457427]
[1625465001771,1.61024753,34276.0,34264.0,0.12257427]
[1625465002022,1.61024753,34276.0,34275.0,0.48115088]
[1625465002023,0.24057544,34276.0,34275.0,0.48115088]
[1625465002127,0.24057544,34276.0,34275.0,0.78045088]
[1625465002221,0.29957544,34276.0,34275.0,0.48087544]
[1625465002321,0.35857544,34276.0,34275.0,0.48087544]
[1625465002522,0.37250109,34276.0,34275.0,0.48087544]
[1625465002621,4.15300109,34276.0,34275.0,0.48087544]
[1625465003024,0.37250109,34276.0,34275.0,0.48087544]
[1625465003132,0.37250109,34276.0,34275.0,0.24057544]
[1625465003222,2.77028063,34276.0,34275.0,0.24057544]
[1625465003574,3.96917414,34276.0,34275.0,0.24057544]
[1625465006181,3.91017414,34276.0,34275.0,0.24057544]
[1625465006285,3.85117414,34276.0,34275.0,0.24057544]
[1625465006780,3.91017414,34276.0,34275.0,0.24057544]
[1625465006881,2.54003887,34276.0,34275.0,0.24057544]
[1625465007332,3.9111123,34276.0,34275.0,0.24057544]
[1625465010538,3.9701123,34276.0,34275.0,0.24057544]
[1625465010639,5.79501792,34276.0,34275.0,0.24057544]
[1625465013194,5.79501792,34276.0,34275.0,0.20897544]
[1625465013498,5.79501792,34276.0,34265.0,0.24057544]
[1625465013797,2.232699,34266.0,34265.0,0.24057544]
[1625465013894,2.447749,34266.0,34265.0,0.24057544]
[1625465014296,2.46167182,34266.0,34265.0,0.24057544]
[1625465016151,3.83668877,34266.0,34265.0,0.24057544]
[1625465016249,3.81668877,34266.0,34265.0,0.25057544]
[1625465016751,2.44167182,34266.0,34265.0,0.25057544]
[1625465017704,3.81811288,34266.0,34265.0,0.25057544]
[1625465018505,3.87711288,34266.0,34265.0,0.25057544]
[1625465018604,3.93611288,34266.0,34265.0,0.25057544]
[1625465018708,5.48471136,34266.0,34265.0,0.25057544]
[1625465019256,5.48471136,34266.0,34265.0,0.24857544]
[1625465019257,5.48271136,34266.0,34265.0,0.24857544]
[1625465020157,5.7232868,34266.0,34265.0,0.24857544]
[1625465020861,6.4119581,34266.0,34265.0,0.24857544]
[1625465021762,6.4119581,34266.0,34265.0,0.008]
[1625465022313,6.4099581,34266.0,34256.0,0.24057544]
[1625465022413,4.947,34259.0,34256.0,0.24057544]
[1625465022514,5.34792,34259.0,34256.0,0.24057544]
[1625465022764,1.72146548,34257.0,34256.0,0.24057544]
[1625465022863,1.78046548,34257.0,34256.0,0.24057544]
[1625465023366,1.79439756,34257.0,34256.0,0.24057544]
[1625465023666,1.78046548,34257.0,34256.0,0.24057544]
[1625465024121,2.26161636,34257.0,34256.0,0.24057544]
[1625465031685,2.26161636,34257.0,34256.0,0.575892]
[1625465032089,2.26161636,34257.0,34256.0,0.24057544]
[1625465036445,2.36161636,34257.0,34256.0,0.24057544]
[1625465036847,2.26161636,34257.0,34256.0,0.24057544]
[1625465039603,2.27555231,34257.0,34256.0,0.24057544]
[1625465042966,4.85756117,34257.0,34256.0,0.24057544]
[1625465043615,0.55408683,34257.0,34256.0,0.24057544]
[1625465044167,4.85748065,34257.0,34256.0,0.24057544]
[1625465044567,4.91648065,34257.0,34256.0,0.24057544]
[1625465045421,4.85748065,34257.0,34256.0,0.24057544]
[1625465045774,3.48044282,34257.0,34256.0,0.24057544]
[1625465046023,3.53944282,34257.0,34256.0,0.24057544]
[1625465046424,4.91638824,34257.0,34256.0,0.24057544]
[1625465050231,5.43271969,34257.0,34256.0,0.24057544]
[1625465055200,5.37371969,34257.0,34256.0,0.57033544]
[1625465056222,3.99677427,34257.0,34256.0,0.57033544]
[1625465059214,5.37281682,34257.0,34256.0,0.57033544]
[1625465059309,5.37281682,34257.0,34256.0,0.24057544]
[1625465059912,3.99677427,34257.0,34256.0,0.24057544]
[1625465060914,3.99677427,34257.0,34256.0,0.55375544]
[1625465061014,3.99677427,34257.0,34256.0,0.55833096]
[1625465061569,2.79184465,34257.0,34256.0,0.55833096]
[1625465062018,2.79184465,34257.0,34256.0,0.64210042]
[1625465062319,2.79184465,34257.0,34256.0,0.9773716]
[1625465062820,3.99688687,34257.0,34256.0,0.9773716]
[1625465063821,3.99688687,34257.0,34256.0,1.0363716]
[1625465063921,3.45673599,34257.0,34256.0,1.0363716]
[1625465064270,3.45673599,34257.0,34256.0,1.27694704]
[1625465064470,2.25169377,34257.0,34256.0,2.03106477]
[1625465064873,0.5302674,34257.0,34256.0,3.03639214]
[1625465065071,0.51633145,34257.0,34256.0,3.03639214]
[1625465065472,0.34448567,34257.0,34256.0,4.20899686]
[1625465066982,0.34448567,34257.0,34256.0,4.26799686]
[1625465067082,0.86131423,34258.0,34256.0,5.60847529]
[1625465067282,0.36101423,34258.0,34256.0,5.60847529]
[1625465067484,0.34664318,34259.0,34257.0,4.6944618]
[1625465067583,0.34664318,34259.0,34257.0,9.4371618]
[1625465067783,0.51687865,34260.0,34257.0,9.4371618]
[1625465067884,0.004,34261.0,34258.0,4.18673857]
[1625465067985,0.004,34261.0,34258.0,4.25031097]
[1625465068085,0.004,34261.0,34258.0,4.30931097]
[1625465068284,0.004,34261.0,34260.0,0.24057544]
[1625465068386,0.004,34261.0,34260.0,3.14593282]
[1625465068486,0.004,34261.0,34260.0,3.20493282]
[1625465068588,0.004,34261.0,34260.0,3.20950517]
[1625465068687,0.104,34261.0,34260.0,3.20950517]
[1625465069089,0.104,34261.0,34260.0,4.49073894]
[1625465069489,0.79337488,34261.0,34260.0,3.20950517]
[1625465069894,0.104,34261.0,34260.0,4.54949623]
[1625465070193,0.104,34261.0,34260.0,3.20950517]
[1625465070293,0.104,34261.0,34260.0,3.20750517]
[1625465071648,0.104,34261.0,34260.0,4.54820408]
[1625465071848,0.104,34261.0,34260.0,4.54363173]
[1625465072151,0.104,34261.0,34260.0,3.20293282]
[1625465073354,0.104,34261.0,34260.0,3.20093282]
[1625465073555,0.79324413,34261.0,34260.0,3.20093282]
[1625465074005,0.104,34261.0,34260.0,3.20093282]
[1625465076361,0.1,34261.0,34260.0,3.20093282]
[1625465076809,0.1,34261.0,34260.0,9.25021036]
[1625465077010,0.1,34261.0,34260.0,4.53811036]
[1625465078817,0.1,34261.0,34260.0,3.20093282]
[1625465079314,0.1,34261.0,34260.0,4.53794436]
[1625465079819,0.1,34261.0,34260.0,3.20093282]
[1625465080065,0.69104964,34263.0,34260.0,3.20093282]
[1625465080266,0.002,34263.0,34260.0,4.53839228]
[1625465080365,0.002,34263.0,34261.0,0.004573]
[1625465080465,0.002,34263.0,34262.0,0.24057544]
[1625465080566,0.002,34263.0,34262.0,0.35857544]
[1625465080767,0.002,34263.0,34262.0,4.53570332]
[1625465081067,0.102,34263.0,34262.0,4.53570332]
[1625465081218,0.102,34263.0,34262.0,3.1990224]
[1625465082321,0.102,34263.0,34262.0,2.02942659]
[1625465083174,1.82347793,34263.0,34262.0,1.0269159]
[1625465084525,1.82347793,34263.0,34262.0,0.9679159]
[1625465084825,1.88247793,34263.0,34262.0,0.9679159]
[1625465084924,1.82347793,34263.0,34262.0,0.9679159]
[1625465085026,3.08746771,34263.0,34262.0,0.29957544]
[1625465085729,3.31518771,34263.0,34262.0,0.29957544]
[1625465085829,3.25618771,34263.0,34262.0,0.29957544]
[1625465085929,4.63333165,34263.0,34262.0,0.29957544]
[1625465086429,3.25618771,34263.0,34262.0,0.38327449]
[1625465086831,2.05119793,34263.0,34262.0,0.29957544]
[1625465087130,3.25610717,34263.0,34262.0,0.29957544]
[1625465087485,2.05119793,34263.0,34262.0,0.29957544]
[1625465087882,3.25616129,34263.0,34262.0,0.29957544]
[1625465087983,3.27009681,34263.0,34262.0,0.29957544]
[1625465088383,3.26809681,34263.0,34262.0,0.29957544]
[1625465088582,3.32709681,34263.0,34262.0,0.29957544]
[1625465088788,3.32709681,34263.0,34262.0,0.38458669]
[1625465088789,3.26809681,34263.0,34262.0,0.38458669]
[1625465089039,4.64513089,34263.0,34262.0,0.38458669]
[1625465089390,3.26809681,34263.0,34262.0,0.29957544]
[1625465089597,3.25416129,34263.0,34262.0,0.29957544]
[1625465089791,2.04919793,34263.0,34262.0,0.98056965]
[1625465089896,1.83541315,34263.0,34262.0,0.98056965]
[1625465090141,1.89441315,34263.0,34262.0,0.98056965]
[1625465090241,3.4375207,34263.0,34262.0,0.29957544]
[1625465090704,3.3785207,34263.0,34262.0,0.29957544]
[1625465090803,4.75557339,34263.0,34262.0,0.38476241]
[1625465090893,4.75557339,34263.0,34262.0,0.44376241]
[1625465091002,4.74163817,34263.0,34262.0,0.44833706]
[1625465091297,2.15968793,34263.0,34262.0,2.06960147]
[1625465091394,1.82147793,34263.0,34262.0,2.06960147]
[1625465091594,1.82147793,34263.0,34262.0,2.01060147]
[1625465091794,1.83541339,34263.0,34262.0,2.01060147]
[1625465092145,2.06950339,34263.0,34262.0,2.01060147]
[1625465092394,2.06950339,34263.0,34262.0,0.98673064]
[1625465093145,2.06950339,34263.0,34262.0,2.01420534]
[1625465093597,2.06950339,34263.0,34262.0,2.07320534]
[1625465093699,1.83541339,34263.0,34262.0,2.07320534]
[1625465094248,0.11393546,34263.0,34262.0,3.27056896]
[1625465094349,0.11393546,34263.0,34262.0,3.55463896]
[1625465094651,0.1,34263.0,34262.0,3.55463896]
[1625465095452,0.11393511,34263.0,34262.0,3.55463896]
[1625465096001,0.1,34263.0,34262.0,3.55463896]
[1625465096201,0.1,34263.0,34262.0,4.92488642]
[1625465097254,0.1,34263.0,34262.0,3.55463896]
[1625465098557,0.1,34263.0,34262.0,4.92331739]
[1625465099007,0.1,34263.0,34262.0,3.55463896]
[1625465099430,0.1,34263.0,34262.0,4.92125871]
[1625465100223,0.1,34263.0,34262.0,9.76625871]
[1625465100511,0.1,34263.0,34262.0,10.00683415]
[1625465100660,0.1,34263.0,34262.0,5.16183415]
[1625465102312,0.33383,34263.0,34262.0,5.16183415]
[1625465103214,0.33383,34263.0,34262.0,3.7952144]
[1625465104006,0.33383,34263.0,34262.0,4.33249608]
[1625465104066,0.49326306,34263.0,34262.0,4.27349608]
[1625465104267,0.46576306,34263.0,34262.0,4.27349608]
[1625465104368,0.46576306,34263.0,34262.0,4.19792143]
[1625465104469,4.76746257,34263.0,34259.0,0.08523788]
[1625465104571,0.72172632,34260.0,34259.0,0.08523788]
[1625465104670,0.78072632,34260.0,34259.0,0.01323788]
[1625465104869,0.85366235,34260.0,34259.0,0.01323788]
[1625465105172,6.01636116,34260.0,34258.0,0.002]
[1625465105272,4.3031,34259.0,34258.0,0.002]
[1625465105371,4.3621,34259.0,34258.0,0.002]
[1625465105575,4.4621,34259.0,34258.0,0.002]
[1625465105675,9.63927195,34259.0,34258.0,0.002]
[1625465106026,9.53927195,34259.0,34258.0,0.002]
[1625465106225,9.53927195,34259.0,34255.0,0.002]
[1625465106524,9.59827195,34259.0,34255.0,0.002]
[1625465106625,3.85467246,34256.0,34255.0,0.002]
[1625465106725,4.21811246,34256.0,34255.0,0.002]
[1625465106976,4.23204997,34256.0,34255.0,0.002]
[1625465108680,5.78071368,34256.0,34255.0,0.002]
[1625465109080,5.72171368,34256.0,34255.0,0.002]
[1625465109381,4.17304997,34256.0,34255.0,0.002]
[1625465110233,4.15911246,34256.0,34255.0,0.002]
[1625465112644,4.21811246,34256.0,34255.0,0.002]
[1625465114147,5.76650966,34256.0,34255.0,0.002]
[1625465115251,5.78049505,34256.0,34255.0,0.002]
[1625465115755,5.76650966,34256.0,34255.0,0.002]
[1625465116052,5.78049521,34256.0,34255.0,0.002]
[1625465118008,0.057,34255.0,34253.0,0.004]
[1625465118110,0.116,34255.0,34253.0,0.004]
[1625465118307,0.116,34255.0,34249.0,0.004]
[1625465118411,5.16373473,34254.0,34249.0,0.004]
[1625465118507,5.28173473,34254.0,34249.0,0.004]
[1625465118707,0.01398649,34253.0,34249.0,0.004]
[1625465118807,5.8721796,34250.0,34249.0,0.004]
[1625465118907,5.9311796,34250.0,34249.0,0.004]
[1625465119007,5.9901796,34250.0,34249.0,0.004]
[1625465119207,4.44507795,34250.0,34249.0,0.004]
[1625465119307,4.38607795,34250.0,34249.0,0.004]
[1625465120109,3.01263519,34250.0,34249.0,0.004]
[1625465121262,3.01063519,34250.0,34249.0,0.004]
[1625465121766,1.80885131,34250.0,34249.0,0.004]
[1625465122015,3.01062775,34250.0,34249.0,0.004]
[1625465123117,1.80885131,34250.0,34249.0,0.004]
[1625465124121,3.00873786,34250.0,34249.0,0.004]
[1625465124319,3.00673786,34250.0,34249.0,0.004]
[1625465125573,3.06573786,34250.0,34249.0,0.004]
[1625465127328,3.00673786,34250.0,34245.0,0.24257544]
[1625465127527,3.00673786,34250.0,34245.0,0.30157544]
[1625465127877,3.00673786,34250.0,34245.0,0.24257544]
[1625465127979,1.02589635,34248.0,34245.0,0.24257544]
[1625465128077,1.34478635,34248.0,34245.0,0.24257544]
[1625465128177,1.40378635,34248.0,34245.0,0.24257544]
[1625465128478,1.02558355,34247.0,34245.0,0.24257544]
[1625465128578,1.08458355,34247.0,34245.0,0.24257544]
[1625465128827,0.24057544,34246.0,34245.0,0.24257544]
[1625465128928,0.29957544,34246.0,34245.0,0.24257544]
[1625465129881,0.31358343,34246.0,34245.0,0.24257544]
[1625465130033,1.33817872,34246.0,34245.0,0.24257544]
[1625465131136,5.37177872,34246.0,34245.0,0.24257544]
[1625465133041,5.37177872,34246.0,34237.0,1.02942717]
[1625465133141,5.43077872,34246.0,34237.0,0.81142717]
[1625465133342,0.01400996,34245.0,34239.0,0.1715687]
[1625465133543,0.10761287,34245.0,34239.0,0.1715687]
[1625465133645,0.16661287,34245.0,34239.0,0.1715687]
[1625465133746,0.16661287,34245.0,34225.0,1.2007051]
[1625465133747,2.55993455,34240.0,34225.0,1.2007051]
[1625465133848,2.87186455,34240.0,34225.0,1.2597051]
[1625465133947,2.87186455,34240.0,34225.0,1.3187051]
[1625465134047,1.5065775,34240.0,34227.0,1.20065447]
[1625465134147,0.01401007,34239.0,34227.0,1.25965447]
[1625465134348,0.07301007,34239.0,34228.0,0.00455773]
[1625465134447,0.07301007,34239.0,34228.0,0.06355773]
[1625465134647,0.0140103,34238.0,34228.0,0.06355773]
[1625465134750,0.0730103,34238.0,34228.0,0.06355773]
[1625465134847,0.72172632,34229.0,34228.0,0.06355773]
[1625465134949,1.01801632,34229.0,34228.0,0.059]
[1625465135147,1.01801632,34229.0,34228.0,0.06355765]
[1625465135848,1.01801632,34229.0,34228.0,0.16355765]
[1625465136597,0.72172632,34229.0,34228.0,0.16355765]
[1625465136899,0.72172632,34229.0,34228.0,0.22255765]
[1625465137400,0.72172632,34229.0,34228.0,1.42253036]
[1625465138253,0.72172632,34229.0,34228.0,2.79359444]
[1625465139857,0.05915088,34229.0,34228.0,2.79359444]
[1625465139956,2.17202976,34245.0,34228.0,3.01780444]
[1625465140158,2.23102976,34245.0,34228.0,3.01780444]
[1625465140259,1.0348,34245.0,34233.0,1.19952066]
[1625465140357,0.01400854,34244.0,34233.0,1.25852066]
[1625465140458,0.07300854,34244.0,34233.0,1.31752066]
[1625465140658,0.059,34244.0,34234.0,0.00455677]
[1625465140762,0.059,34244.0,34235.0,1.19945919]
[1625465140860,0.059,34244.0,34235.0,1.57529919]
[1625465140961,0.059,34244.0,34243.0,0.24057544]
[1625465141059,0.059,34244.0,34243.0,0.56249544]
[1625465141161,0.059,34244.0,34243.0,0.66249544]
[1625465141610,0.059,34244.0,34243.0,0.56249544]
[1625465141911,0.059,34244.0,34243.0,0.50349544]
[1625465142261,0.07300837,34244.0,34243.0,0.50349544]
[1625465142364,4.88150837,34244.0,34243.0,0.50349544]
[1625465142664,4.88150837,34244.0,34243.0,0.24057544]
[1625465143316,0.07300837,34244.0,34243.0,0.24057544]
[1625465143416,0.07300837,34244.0,34243.0,0.29957544]
[1625465143817,0.07300837,34244.0,34243.0,0.24057544]
[1625465143920,0.07300837,34244.0,34243.0,0.29957544]
[1625465148175,0.07300837,34244.0,34243.0,0.24057544]
[1625465150528,0.07300837,34244.0,34243.0,0.29957544]
[1625465152829,0.07300837,34244.0,34243.0,0.61057544]
[1625465153431,0.07300837,34244.0,34243.0,0.61513025]
[1625465154482,0.07300837,34244.0,34243.0,0.61057544]
[1625465155382,0.07300837,34244.0,34243.0,0.55157544]
[1625465155482,0.07300837,34244.0,34243.0,0.24057544]
[1625465156936,0.07300837,34244.0,34243.0,0.29957544]
[1625465157437,0.58481275,34244.0,34243.0,0.29957544]
[1625465158691,0.58481275,34244.0,34243.0,0.24057544]
[1625465159995,2.09705036,34244.0,34243.0,0.24057544]
[1625465161053,3.46470216,34244.0,34243.0,0.24057544]
[1625465161504,2.09705036,34244.0,34243.0,0.24057544]
[1625465162007,3.46558166,34244.0,34243.0,0.24057544]
[1625465162557,2.09705036,34244.0,34243.0,0.24057544]
[1625465163605,3.10835732,34244.0,34243.0,0.24057544]
[1625465164357,4.4613601,34244.0,34243.0,0.75756842]
[1625465164957,5.13759416,34244.0,34243.0,0.24057544]
[1625465165808,5.13759416,34244.0,34243.0,0.75772139]
[1625465168061,5.13759416,34244.0,34243.0,0.76226777]
[1625465168511,5.13759416,34244.0,34243.0,0.75772139]
[1625465169363,5.13759416,34244.0,34243.0,0.24057544]
[1625465169563,5.13759416,34244.0,34243.0,0.24512186]
[1625465169866,5.13759416,34244.0,34243.0,1.45218275]
[1625465172222,5.13759416,34244.0,34243.0,1.44763633]
[1625465172525,5.13759416,34244.0,34243.0,0.75788725]
[1625465172973,5.13759416,34244.0,34243.0,0.24057544]
[1625465173675,5.13759416,34244.0,34243.0,0.758191]
[1625465174377,5.13759416,34244.0,34243.0,0.76273618]
[1625465174830,5.13759416,34244.0,34243.0,1.45287118]
[1625465176634,5.13759416,34244.0,34243.0,1.448326]
[1625465177235,6.65990521,34244.0,34243.0,0.24057544]
[1625465179492,6.71890521,34244.0,34243.0,0.24057544]
[1625465180093,6.65990521,34244.0,34243.0,0.24057544]
[1625465187763,6.69450468,34244.0,34243.0,0.24057544]
[1625465190920,6.75350468,34244.0,34243.0,0.24057544]
[1625465191021,6.75350468,34244.0,34241.0,0.8633483]
[1625465191222,6.75350468,34244.0,34240.0,0.86533905]
[1625465191473,0.24057544,34241.0,34240.0,0.86533905]
[1625465191573,6.54457573,34241.0,34240.0,0.002]
[1625465191771,6.59322368,34241.0,34240.0,0.002]
[1625465191975,6.59322368,34241.0,34238.0,3.333e-05]
[1625465192325,6.59322368,34241.0,34237.0,0.51803684]
[1625465192423,0.0140461,34240.0,34237.0,0.51803684]
[1625465192523,0.0730461,34240.0,34237.0,0.51803684]
[1625465192826,6.24255998,34238.0,34236.0,0.51805327]
[1625465192925,6.30155998,34238.0,34236.0,0.51805327]
[1625465193226,6.30155998,34238.0,34235.0,0.6907377]
[1625465193227,0.059,34238.0,34237.0,0.002]
[1625465193476,3.7805,34238.0,34237.0,0.002]
[1625465193578,4.03512163,34238.0,34237.0,0.002]
[1625465193777,10.27550981,34238.0,34237.0,0.002]
[1625465196331,10.27750981,34238.0,34233.0,1.4488599]
[1625465196681,0.01406054,34237.0,34233.0,1.4488599]
[1625465196782,0.28363054,34237.0,34233.0,1.4488599]
[1625465196882,4.7195036,34234.0,34233.0,0.9310237]
[1625465197284,4.73356414,34234.0,34233.0,0.9310237]
[1625465197384,4.73356414,34234.0,34233.0,0.75823335]